fUSD/lending_fUSD_20260106
["ID","MTS","AMOUNT","RATE_DAILY","PERIOD"]
[400583246,1767732649628,-661.18,0.00042493,30]
[400583247,1767732649638,-160.0,0.000425,44]
[400583249,1767732649647,-911.64,0.00042504,120]
[400583251,1767732649657,-300.0,0.00042536,2]
[400583253,1767732649666,-20505.0,0.0004254,30]
[400583255,1767732649675,-482.51,0.00042548,30]
[400583257,1767732649686,-482.51,0.00042548,30]
[400583259,1767732649695,-953.68,0.00042548,30]
[400583261,1767732649704,-153.0,0.00042562,120]
[400583263,1767732649713,-152.0,0.000426,120]
[400583265,1767732649723,-466.43,0.0004263,30]
[400583267,1767732649731,-171.25,0.0004263,30]
[400583269,1767732649740,-178.99,0.0004263,30]
[400583271,1767732649749,-151.69,0.0004263,30]
[400583273,1767732649759,-178.99,0.0004263,30]
[400583274,1767732649767,-171.25,0.0004263,30]
[400583276,1767732649776,-466.43,0.0004263,30]
[400583278,1767732649786,-150.0,0.0004263,30]
[400583280,1767732649795,-171.33,0.0004263,30]
[400583282,1767732649804,-171.25,0.0004263,30]
[400583284,1767732649813,-466.43,0.0004263,30]
[400583286,1767732649822,-171.25,0.0004263,30]
[400583288,1767732649835,-466.43,0.0004263,30]
[400583290,1767732649844,-150.0,0.0004263,30]
[400583292,1767732649854,-171.25,0.0004263,30]
[400583294,1767732649866,-466.43,0.0004263,30]
[400583296,1767732649877,-153.0,0.00042662,120]
[400583298,1767732649886,-388.59,0.00042685,30]
[400583300,1767732649894,-1184.56,0.00042685,30]
[400583302,1767732649903,-178.99,0.00042685,30]
[400583304,1767732649913,-178.99,0.00042685,30]
[400583306,1767732649922,-362.85890571,0.000427,30]
[400583308,1767732649931,-1000.0,0.00042704,14]
[400583310,1767732649940,-300.0,0.00042711,2]
[400583312,1767732649949,-1353.9,0.00042717,30]
[400583314,1767732649959,-250.0,0.0004274,10]
[400583316,1767732649969,-507.465941,0.0004274,10]
[400583317,1767732649978,-153.0,0.00042762,120]
[400583319,1767732649988,-152.0,0.000428,120]
[400583322,1767732649999,-162.47850535,0.000428,120]
[400583323,1767732650008,-986.0,0.00042805,16]
[400583325,1767732650018,-300.0,0.00042831,2]
[400583327,1767732650027,-153.0,0.00042862,120]
[400583329,1767732650037,-300.0,0.00042886,2]
[400583331,1767732650046,-300.0,0.00042889,2]
[400583333,1767732650055,-300.0,0.00042895,2]
[400583335,1767732650064,-594.8574243,0.00042898,14]
[400583337,1767732650073,-1120.22,0.000429,14]
[400583339,1767732650082,-150.7,0.00042904,30]
[400583341,1767732650092,-1000.0,0.00042918,14]
[400583343,1767732650101,-1000.0,0.00042928,14]
[400583344,1767732650110,-300.070439,0.00042933,114]
[400583345,1767732650119,-439.29698496,0.00042933,30]
[400583346,1767732650128,-365.64970051,0.00042933,30]
[400583347,1767732650137,-581.45000001,0.00042933,30]
[400583348,1767732650146,-20505.0,0.00042961,30]
[400583349,1767732650155,-300.0,0.00042979,2]
[400583350,1767732650163,-300.0,0.00042984,2]
[400583351,1767732650172,-199.0,0.00043,30]
[400583352,1767732650181,-158.0,0.00043,90]
[400583353,1767732650190,-2000.0,0.00043,120]
[400583354,1767732650199,-1032.0,0.00043,30]
[400583355,1767732650208,-2000.0,0.00043,120]
[400583357,1767732650216,-168.0,0.00043,90]
[400583359,1767732650226,-2282.7389,0.00043,120]
[400583361,1767732650236,-690.94469485,0.00043,120]
[400583363,1767732650245,-158.0,0.00043014,90]
[400583365,1767732650256,-300.0,0.00043023,2]
[400583367,1767732650266,-299.73918347,0.00043029,120]
[400583369,1767732650275,-1532.84547,0.0004303,120]
[400583371,1767732650284,-1532.84548,0.0004303,120]
[400583373,1767732650299,-1532.84548,0.0004303,120]
[400583375,1767732650308,-1532.84547,0.0004303,120]
[400583377,1767732650318,-1532.84548,0.0004303,120]
[400583379,1767732650327,-2483.2703733,0.00043035,30]
[400583381,1767732650336,-300.0,0.00043047,2]
[400583383,1767732650345,-300.0,0.00043061,2]
[400583385,1767732650354,-300.0,0.0004309,2]
[400583387,1767732650363,-2346.47,0.000431,120]
[400583389,1767732650372,-670.42,0.000431,14]
[400583391,1767732650382,-300.0,0.0004311,2]
[400583393,1767732650391,-152.53735496,0.00043117,14]
[400583395,1767732650400,-300.0,0.00043117,2]
[400583397,1767732650409,-833.0,0.00043138,16]
[400583399,1767732650419,-1000.0,0.00043141,14]
[400583401,1767732650428,-502.0,0.00043145,17]
[400583403,1767732650437,-323.28463124,0.00043145,2]
[400583404,1767732650447,-2500.0,0.00043157,120]
[400583405,1767732650456,-2500.0,0.00043157,120]
[400583406,1767732650465,-2500.0,0.00043157,120]
[400583407,1767732650474,-2500.0,0.00043157,120]
[400583408,1767732650483,-300.0,0.00043158,2]
[400583409,1767732650492,-300.0,0.00043164,2]
[400583410,1767732650501,-1000.0,0.00043185,14]
[400583411,1767732650510,-152.0,0.000432,120]
[400583412,1767732650519,-300.0,0.00043236,2]
[400583413,1767732650529,-1000.0,0.00043267,14]
[400583414,1767732650538,-165.71408053,0.0004327,120]
[400583415,1767732650547,-999.0,0.00043287,120]
[400583416,1767732650556,-300.0,0.00043292,2]
[400583418,1767732650566,-232.48757784,0.00043298,120]
[400583419,1767732650576,-300.0,0.00043315,2]
[400583420,1767732650585,-300.0,0.00043326,2]
[400583421,1767732650594,-300.0,0.00043329,2]
[400583422,1767732650603,-2562.08208434,0.00043357,120]
[400583423,1767732650613,-300.0,0.00043357,2]
[400583424,1767732650622,-4891.0,0.00043359,7]
[400583425,1767732650631,-3466.0,0.00043359,2]
[400583426,1767732650640,-433.0,0.00043359,2]
[400583427,1767732650649,-2435.0,0.00043359,2]
[400583428,1767732650659,-4817.0,0.00043359,2]
[400583429,1767732650668,-500.0,0.00043359,120]
[400583430,1767732650679,-3736.4505,0.0004336,10]
[400583431,1767732650688,-625.59098531,0.00043368,120]
[400583432,1767732650698,-704.85854174,0.0004337,3]
[400583433,1767732650708,-465.27484984,0.00043375,120]
[400583434,1767732650717,-357.23026484,0.00043382,8]
[400583436,1767732650727,-268.41546742,0.00043382,28]
[400583438,1767732650736,-17585.01162265,0.00043382,2]
[400583440,1767732650746,-1175.52884139,0.00043382,2]
[400583442,1767732650756,-863.87770283,0.00043382,120]
[400583444,1767732650766,-863.87770283,0.00043382,120]
[400583447,1767732650776,-863.87770283,0.00043382,120]
[400583449,1767732650786,-863.87770283,0.00043382,120]
[400583451,1767732650796,-863.87770283,0.00043382,120]
[400583453,1767732650805,-863.87770283,0.00043382,120]
[400583455,1767732650815,-863.87770283,0.00043382,120]
[400583457,1767732650823,-863.87770283,0.00043382,120]
[400583459,1767732650836,-863.87770283,0.00043382,120]
[400583461,1767732650845,-863.87770283,0.00043382,120]
[400583463,1767732650854,-863.87770283,0.00043382,120]
[400583465,1767732650863,-863.87770283,0.00043382,120]
[400583467,1767732650872,-863.87770283,0.00043382,120]
[400583469,1767732650883,-863.87770283,0.00043382,120]
[400583471,1767732650892,-863.87770283,0.00043382,120]
[400583473,1767732650902,-863.87770283,0.00043382,120]
[400583475,1767732650911,-863.87770283,0.00043382,120]
[400583477,1767732650920,-863.87770283,0.00043382,120]
[400583479,1767732650930,-863.87770283,0.00043382,120]
[400583481,1767732650939,-863.87,0.00043382,120]
[400583483,1767732650948,-2015.71463993,0.00043382,120]
[400583485,1767732650958,-2015.71463993,0.00043382,120]
[400583487,1767732650967,-2015.71463993,0.00043382,120]
[400583489,1767732650977,-2015.71463993,0.00043382,120]
[400583491,1767732650988,-2015.71463993,0.00043382,120]
[400583493,1767732650997,-2015.71463993,0.00043382,120]
[400583495,1767732651006,-2015.71463993,0.00043382,120]
[400583497,1767732651016,-2015.71463993,0.00043382,120]
[400583498,1767732651026,-2015.71463993,0.00043382,120]
[400583499,1767732651045,-2015.71463993,0.00043382,120]
[400583500,1767732651056,-2015.71463993,0.00043382,120]
[400583501,1767732651065,-2015.71463993,0.00043382,120]
[400583502,1767732651074,-2015.71463993,0.00043382,120]
[400583503,1767732651084,-2015.71463993,0.00043382,120]
[400583515,1767732651259,-2015.71463993,0.00043382,120]
[400583516,1767732651269,-2015.71463993,0.00043382,120]
[400583517,1767732651279,-2015.71463993,0.00043382,120]
[400583518,1767732651288,-2015.71463993,0.00043382,120]
[400583519,1767732651297,-2015.71463993,0.00043382,120]
[400583520,1767732651306,-2015.71,0.00043382,120]
[400583521,1767732651315,-283.46,0.00043382,120]
[400583522,1767732651324,-269.47,0.00043382,120]
[400583523,1767732651333,-20505.0,0.00043383,30]
[400583524,1767732651343,-2053.97,0.00043385,120]
[400583525,1767732651352,-18768.38333774,0.00043393,2]
[400583526,1767732651361,-500.0,0.00043393,120]
[400583527,1767732651371,-184064.6608997,0.00043394,2]
[400583528,1767732651381,-15480.11203971,0.000434,30]
[400583529,1767732651390,-150.0,0.000434,66]
[400583530,1767732651399,-189.6,0.000434,27]
[400583531,1767732651408,-1000.0,0.000434,120]
[400583532,1767732651417,-253.0,0.000434,42]
[400583533,1767732651427,-535.04449244,0.00043401,11]
[400583534,1767732651436,-167.99433605,0.00043401,120]
[400583535,1767732651446,-219.35995196,0.00043413,2]
[400583536,1767732651455,-1000.0,0.0004342,120]
[400583537,1767732651464,-1000.0,0.00043424,120]
[400583538,1767732651473,-1353.9,0.00043438,120]
[400583539,1767732651482,-200.0,0.00043442,120]
[400583540,1767732651491,-800.0,0.00043444,16]
[400583541,1767732651500,-800.0,0.00043444,16]
[400583542,1767732651509,-800.0,0.00043444,16]
[400583543,1767732651519,-800.0,0.00043444,16]
[400583544,1767732651528,-800.0,0.00043444,16]
[400583545,1767732651538,-800.0,0.00043444,16]
[400583546,1767732651547,-800.0,0.00043444,16]
[400583547,1767732651556,-800.0,0.00043444,16]
[400583548,1767732651565,-800.0,0.00043444,16]
[400583549,1767732651574,-800.0,0.00043444,16]
[400583550,1767732651584,-800.0,0.00043444,16]
[400583551,1767732651593,-800.0,0.00043444,16]
[400583552,1767732651602,-800.0,0.00043444,16]
[400583553,1767732651612,-800.0,0.00043444,16]
[400583554,1767732651623,-800.0,0.00043444,16]
[400583555,1767732651633,-800.0,0.00043444,16]
[400583556,1767732651643,-500.0,0.00043451,120]
[400583557,1767732651653,-171.25,0.00043452,30]
[400583558,1767732651662,-661.18,0.00043452,30]
[400583559,1767732651672,-171.25,0.00043452,30]
[400583560,1767732651682,-661.18,0.00043452,30]
[400583561,1767732651694,-150.0,0.00043452,30]
[400583562,1767732651704,-150.0,0.00043452,30]
[400583563,1767732651716,-150.0,0.00043452,30]
[400583564,1767732651725,-150.0,0.00043452,30]
[400583565,1767732651734,-150.0,0.00043452,30]
[400583566,1767732651743,-150.0,0.00043452,30]
[400583567,1767732651752,-150.0,0.00043452,30]
[400583568,1767732651761,-150.0,0.00043452,30]
[400583569,1767732651770,-153.52,0.00043452,30]
[400583570,1767732651780,-150.0,0.00043456,14]
[400583571,1767732651790,-2500.0,0.00043457,120]
[400583572,1767732651799,-500.0,0.00043459,120]
[400583573,1767732651809,-4000.0,0.00043459,7]
[400583574,1767732651818,-151.0,0.0004346,120]
[400583575,1767732651828,-250.0,0.0004346,45]
[400583576,1767732651842,-2000.0,0.0004346,7]
[400583577,1767732651851,-200.0,0.0004346,7]
[400583578,1767732651861,-1260.0,0.0004346,7]
[400583579,1767732651870,-1260.0,0.0004346,7]
[400583580,1767732651881,-1260.0,0.0004346,7]
[400583581,1767732651892,-151.0,0.0004346,7]
[400583582,1767732651902,-1260.0,0.0004346,7]
[400583583,1767732651915,-158.98978226,0.0004346,7]
[400583584,1767732651924,-1260.0,0.0004346,7]
[400583585,1767732651934,-983.9346905,0.0004346,7]
[400583586,1767732651944,-1000.0,0.0004346,14]
[400583587,1767732651954,-188.88498862,0.0004346,30]
[400583588,1767732651963,-1000.0,0.00043464,2]
[400583589,1767732651972,-1000.0,0.00043464,2]
[400583590,1767732651982,-1000.0,0.00043464,2]
[400583591,1767732651991,-1000.0,0.00043464,2]
[400583592,1767732652001,-1000.0,0.00043464,2]
[400583593,1767732652010,-1000.0,0.00043464,2]
[400583594,1767732652019,-1000.0,0.00043464,2]
[400583595,1767732652028,-1000.0,0.00043464,2]
[400583596,1767732652038,-1000.0,0.00043464,2]
[400583597,1767732652047,-1000.0,0.00043464,2]
[400583598,1767732652056,-774.272,0.00043464,2]
[400583599,1767732652066,-2629.6,0.00043464,120]
[400583600,1767732652075,-1532.84548,0.00043464,120]
[400583601,1767732652084,-1532.84548,0.00043464,120]
[400583602,1767732652094,-1532.84547,0.00043464,120]
[400583603,1767732652111,-1532.84548,0.00043464,120]
[400583604,1767732652130,-1532.84548,0.00043464,120]
[400583605,1767732652148,-215.6625783,0.00043465,7]
[400583606,1767732652170,-461.76650521,0.00043467,2]
[400583607,1767732652185,-13514.39036148,0.00043468,2]
[400583608,1767732652201,-15291.37127297,0.00043468,4]
[400583609,1767732652219,-161.92795047,0.00043468,30]
[400583610,1767732652239,-161.92795047,0.00043468,30]
[400583611,1767732652258,-151.0,0.00043468,120]
[400583612,1767732652275,-151.0,0.00043468,120]
[400583613,1767732652295,-278.17483,0.00043468,120]
[400583614,1767732652316,-151.0,0.00043468,120]
[400583615,1767732652331,-151.0,0.00043468,120]
[400583616,1767732652348,-151.0,0.00043468,120]
[400583617,1767732652362,-151.0,0.00043468,120]
[400583618,1767732652380,-151.0,0.00043468,120]
[400583619,1767732652395,-157.236016,0.00043468,120]
[400583620,1767732652411,-151.0,0.00043468,120]
[400583621,1767732652429,-158.523641,0.00043468,120]
[400583622,1767732652445,-203.55208,0.00043468,120]
[400583623,1767732652461,-165.881788,0.00043468,120]
[400583624,1767732652477,-165.881788,0.00043468,120]
[400583625,1767732652493,-165.881788,0.00043468,120]
[400583626,1767732652509,-165.881788,0.00043468,120]
[400583627,1767732652525,-165.881788,0.00043468,120]
[400583628,1767732652540,-165.881788,0.00043468,120]
[400583629,1767732652555,-165.881788,0.00043468,120]
[400583630,1767732652568,-165.881788,0.00043468,120]
[400583631,1767732652583,-165.881788,0.00043468,120]
[400583632,1767732652598,-165.881788,0.00043468,120]
[400583633,1767732652620,-165.881788,0.00043468,120]
[400583634,1767732652640,-165.881788,0.00043468,120]
[400583635,1767732652663,-165.881788,0.00043468,120]
[400583636,1767732652678,-165.881778,0.00043468,120]
[400583637,1767732652694,-151.0,0.00043468,120]
[400583638,1767732652711,-176.251751,0.00043468,120]
[400583639,1767732652728,-151.0,0.00043468,120]
[400583640,1767732652745,-151.0,0.00043468,120]
[400583641,1767732652761,-151.0,0.00043468,120]
[400583642,1767732652777,-151.0,0.00043468,120]
[400583643,1767732652793,-151.0,0.00043468,120]
[400583644,1767732652809,-151.0,0.00043468,120]
[400583645,1767732652825,-151.0,0.00043468,120]
[400583646,1767732652843,-151.0,0.00043468,120]
[400583647,1767732652858,-151.0,0.00043468,120]
[400583648,1767732652872,-256.673018,0.00043468,120]
[400583649,1767732652888,-226.011011,0.00043468,120]
[400583650,1767732652904,-151.0,0.00043468,120]
[400583651,1767732652919,-154.45562,0.00043468,120]
[400583652,1767732652935,-151.0,0.00043468,120]
[400583653,1767732652951,-151.0,0.00043468,120]
[400583654,1767732652967,-151.0,0.00043468,120]
[400583655,1767732652981,-158.541394,0.00043468,120]
[400583656,1767732652995,-151.0,0.00043468,120]
[400583657,1767732653012,-151.0,0.00043468,120]
[400583658,1767732653027,-151.0,0.00043468,120]
[400583659,1767732653044,-151.0,0.00043468,120]
[400583660,1767732653058,-151.0,0.00043468,120]
[400583661,1767732653073,-151.0,0.00043468,120]
[400583662,1767732653089,-151.0,0.00043468,120]
[400583663,1767732653105,-151.0,0.00043468,120]
[400583664,1767732653120,-151.0,0.00043468,120]
[400583665,1767732653136,-151.0,0.00043468,120]
[400583666,1767732653151,-151.0,0.00043468,120]
[400583667,1767732653167,-151.0,0.00043468,120]
[400583668,1767732653184,-151.0,0.00043468,120]
[400583669,1767732653199,-151.0,0.00043468,120]
[400583670,1767732653214,-165.239909,0.00043468,120]
[400583671,1767732653229,-151.0,0.00043468,120]
[400583672,1767732653245,-151.0,0.00043468,120]
[400583673,1767732653261,-151.0,0.00043468,120]
[400583674,1767732653276,-256.18893,0.00043468,120]
[400583675,1767732653297,-461.713258,0.00043468,120]
[400583676,1767732653315,-461.713258,0.00043468,120]
[400583677,1767732653333,-461.713258,0.00043468,120]
[400583678,1767732653349,-461.713258,0.00043468,120]
[400583679,1767732653365,-461.713258,0.00043468,120]
[400583680,1767732653381,-461.713258,0.00043468,120]
[400583681,1767732653398,-151.0,0.00043468,120]
[400583682,1767732653419,-461.713258,0.00043468,120]
[400583683,1767732653439,-461.713258,0.00043468,120]
[400583684,1767732653449,-461.713258,0.00043468,120]
[400583685,1767732653459,-461.713258,0.00043468,120]
[400583686,1767732653468,-461.713258,0.00043468,120]
[400583687,1767732653477,-461.713258,0.00043468,120]
[400583688,1767732653487,-461.713258,0.00043468,120]
[400583689,1767732653734,-461.713258,0.00043468,120]
[400583690,1767732653756,-461.713258,0.00043468,120]
[400583691,1767732653777,-461.713258,0.00043468,120]
[400583692,1767732653787,-461.713258,0.00043468,120]
[400583693,1767732653797,-461.713258,0.00043468,120]
[400583694,1767732653807,-461.713258,0.00043468,120]
[400583695,1767732653816,-151.0,0.00043468,120]
[400583696,1767732653826,-461.713262,0.00043468,120]
[400583697,1767732653838,-151.0,0.00043468,120]
[400583698,1767732653847,-151.0,0.00043468,120]
[400583699,1767732653857,-151.0,0.00043468,120]
[400583700,1767732653867,-151.0,0.00043468,120]
[400583701,1767732653878,-151.0,0.00043468,120]
[400583702,1767732653888,-151.0,0.00043468,120]
[400583703,1767732653898,-205.518596,0.00043468,120]
[400583704,1767732653908,-151.0,0.00043468,10]
[400583705,1767732653918,-154.66916,0.00043468,10]
[400583706,1767732653927,-151.0,0.00043468,120]
[400583707,1767732653937,-151.0,0.00043468,120]
[400583708,1767732653946,-151.0,0.00043468,120]
[400583709,1767732653960,-151.0,0.00043468,120]
[400583710,1767732653969,-151.0,0.00043468,30]
[400583711,1767732653979,-151.0,0.00043468,120]
[400583712,1767732653989,-151.0,0.00043468,120]
[400583713,1767732653999,-291.61897085,0.00043468,120]
[400583714,1767732654009,-151.0,0.00043468,45]
[400583715,1767732654019,-217.18995,0.00043468,45]
[400583716,1767732654029,-151.0,0.00043468,120]
[400583717,1767732654039,-151.0,0.00043468,120]
[400583718,1767732654049,-206.523687,0.00043468,120]
[400583719,1767732654059,-152.956426,0.00043468,120]
[400583720,1767732654068,-152.956426,0.00043468,120]
[400583721,1767732654078,-152.956426,0.00043468,120]
[400583722,1767732654088,-152.956426,0.00043468,120]
[400583723,1767732654097,-152.956426,0.00043468,120]
[400583724,1767732654107,-152.956426,0.00043468,120]
[400583725,1767732654117,-460.906222,0.00043468,120]
[400583726,1767732654126,-152.956426,0.00043468,120]
[400583727,1767732654136,-460.906222,0.00043468,120]
[400583728,1767732654145,-152.956426,0.00043468,120]
[400583729,1767732654155,-460.906222,0.00043468,120]
[400583730,1767732654164,-152.956426,0.00043468,120]
[400583731,1767732654174,-460.906222,0.00043468,120]
[400583732,1767732654184,-152.956426,0.00043468,120]
[400583733,1767732654194,-460.906222,0.00043468,120]
[400583734,1767732654204,-152.956426,0.00043468,120]
[400583735,1767732654214,-460.906222,0.00043468,120]
[400583736,1767732654225,-152.956426,0.00043468,120]
[400583737,1767732654234,-460.906222,0.00043468,120]
[400583738,1767732654244,-152.956426,0.00043468,120]
[400583739,1767732654254,-460.906222,0.00043468,120]
[400583740,1767732654263,-152.956426,0.00043468,120]
[400583741,1767732654272,-460.906222,0.00043468,120]
[400583742,1767732654282,-152.956426,0.00043468,120]
[400583743,1767732654291,-460.906222,0.00043468,120]
[400583744,1767732654301,-152.956426,0.00043468,120]
[400583745,1767732654310,-460.906222,0.00043468,120]
[400583746,1767732654320,-460.906222,0.00043468,120]
[400583747,1767732654329,-152.956426,0.00043468,120]
[400583748,1767732654339,-152.956426,0.00043468,120]
[400583749,1767732654348,-460.906222,0.00043468,120]
[400583750,1767732654357,-152.956426,0.00043468,120]
[400583751,1767732654366,-460.906222,0.00043468,120]
[400583752,1767732654375,-460.906222,0.00043468,120]
[400583753,1767732654384,-152.956434,0.00043468,120]
[400583754,1767732654394,-460.906222,0.00043468,120]
[400583755,1767732654404,-460.906222,0.00043468,120]
[400583756,1767732654414,-460.906222,0.00043468,120]
[400583757,1767732654426,-460.906222,0.00043468,120]
[400583758,1767732654438,-151.0,0.00043468,5]
[400583759,1767732654447,-460.90623,0.00043468,120]
[400583760,1767732654456,-151.748266,0.00043468,5]
[400583761,1767732654465,-168.55207,0.00043468,120]
[400583762,1767732654474,-151.0,0.00043468,120]
[400583763,1767732654483,-151.0,0.00043468,120]
[400583764,1767732654492,-151.0,0.00043468,120]
[400583765,1767732654501,-235.896825,0.00043468,120]
[400583766,1767732654510,-151.0,0.00043468,120]
[400583767,1767732654519,-151.0,0.00043468,120]
[400583768,1767732654528,-178.435728,0.00043468,120]
[400583769,1767732654537,-151.0,0.00043468,120]
[400583770,1767732654546,-151.0,0.00043468,120]
[400583771,1767732654554,-151.0,0.00043468,120]
[400583772,1767732654563,-151.0,0.00043468,120]
[400583773,1767732654572,-151.0,0.00043468,120]
[400583774,1767732654581,-151.0,0.00043468,120]
[400583775,1767732654590,-151.0,0.00043468,120]
[400583776,1767732654599,-151.0,0.00043468,120]
[400583777,1767732654608,-151.0,0.00043468,120]
[400583778,1767732654618,-151.0,0.00043468,120]
[400583779,1767732654627,-151.0,0.00043468,120]
[400583780,1767732654636,-151.0,0.00043468,120]
[400583781,1767732654645,-151.0,0.00043468,120]
[400583782,1767732654654,-151.0,0.00043468,120]
[400583783,1767732654663,-151.0,0.00043468,120]
[400583784,1767732654672,-151.0,0.00043468,120]
[400583785,1767732654681,-151.0,0.00043468,120]
[400583786,1767732654690,-151.0,0.00043468,120]
[400583787,1767732654699,-151.0,0.00043468,120]
[400583788,1767732654708,-151.0,0.00043468,120]
[400583789,1767732654717,-257.086558,0.00043468,120]
[400583790,1767732654726,-151.0,0.00043468,120]
[400583791,1767732654735,-151.0,0.00043468,120]
[400583792,1767732654744,-189.704472,0.00043468,120]
[400583793,1767732654753,-151.0,0.00043468,120]
[400583794,1767732654762,-151.0,0.00043468,120]
[400583795,1767732654772,-151.0,0.00043468,120]
[400583796,1767732654781,-994.11562,0.00043468,120]
[400583797,1767732654791,-994.11562,0.00043468,120]
[400583798,1767732654800,-994.11562,0.00043468,120]
[400583799,1767732654809,-994.11562,0.00043468,120]
[400583800,1767732654818,-994.11562,0.00043468,120]
[400583801,1767732654828,-994.11562,0.00043468,120]
[400583802,1767732654842,-994.11562,0.00043468,120]
[400583803,1767732654851,-994.11562,0.00043468,120]
[400583804,1767732654861,-994.11562,0.00043468,120]
[400583805,1767732654870,-994.11562,0.00043468,120]
[400583806,1767732654881,-994.11562,0.00043468,120]
[400583807,1767732654890,-994.11562,0.00043468,120]
[400583808,1767732654899,-994.11562,0.00043468,120]
[400583809,1767732654910,-994.11562,0.00043468,120]
[400583810,1767732654920,-994.11562,0.00043468,120]
[400583811,1767732654929,-994.11562,0.00043468,120]
[400583812,1767732654938,-994.11562,0.00043468,120]
[400583813,1767732654948,-994.11562,0.00043468,120]
[400583814,1767732654957,-994.11562,0.00043468,120]
[400583815,1767732654966,-994.11562,0.00043468,120]
[400583816,1767732654977,-151.0,0.00043468,120]
[400583817,1767732654987,-151.0,0.00043468,120]
[400583818,1767732654996,-151.0,0.00043468,120]
[400583819,1767732655005,-151.0,0.00043468,120]
[400583820,1767732655015,-151.0,0.00043468,120]
[400583821,1767732655024,-151.0,0.00043468,120]
[400583822,1767732655033,-151.0,0.00043468,120]
[400583823,1767732655043,-167.040625,0.00043468,120]
[400583824,1767732655052,-151.0,0.00043468,120]
[400583825,1767732655061,-151.0,0.00043468,120]
[400583826,1767732655070,-151.0,0.00043468,120]
[400583827,1767732655080,-151.0,0.00043468,120]
[400583828,1767732655089,-151.0,0.00043468,120]
[400583829,1767732655100,-151.0,0.00043468,120]
[400583830,1767732655109,-151.0,0.00043468,120]
[400583831,1767732655118,-151.0,0.00043468,120]
[400583832,1767732655127,-151.0,0.00043468,120]
[400583833,1767732655136,-151.0,0.00043468,120]
[400583834,1767732655145,-151.0,0.00043468,120]
[400583835,1767732655154,-151.0,0.00043468,120]
[400583836,1767732655164,-151.0,0.00043468,120]
[400583837,1767732655173,-151.0,0.00043468,120]
[400583838,1767732655182,-151.0,0.00043468,120]
[400583839,1767732655191,-151.0,0.00043468,120]
[400583840,1767732655200,-151.0,0.00043468,120]
[400583841,1767732655210,-151.0,0.00043468,120]
[400583842,1767732655220,-151.0,0.00043468,120]
[400583843,1767732655230,-151.0,0.00043468,120]
[400583844,1767732655239,-258.489967,0.00043468,120]
[400583845,1767732655249,-151.0,0.00043468,120]
[400583846,1767732655258,-151.0,0.00043468,120]
[400583847,1767732655268,-151.0,0.00043468,120]
[400583848,1767732655279,-151.0,0.00043468,120]
[400583849,1767732655289,-151.0,0.00043468,120]
[400583850,1767732655299,-151.0,0.00043468,120]
[400583851,1767732655308,-151.0,0.00043468,120]
[400583852,1767732655319,-167.193054,0.00043468,120]
[400583853,1767732655328,-151.0,0.00043468,60]
[400583854,1767732655337,-151.0,0.00043468,60]
[400583855,1767732655347,-151.0,0.00043468,60]
[400583856,1767732655358,-151.0,0.00043468,120]
[400583857,1767732655368,-151.0,0.00043468,60]
[400583858,1767732655379,-151.0,0.00043468,120]
[400583859,1767732655388,-151.0,0.00043468,60]
[400583860,1767732655397,-188.179526,0.00043468,120]